[Event "*** Titled Tuesday Blitz"]
[Site "Chess.com"]
[Date "2021.03.30"]
[Round "8"]
[White "Olga_Zhuravleva"]
[Black "elohunter1999"]
[Result "0-1"]
[WhiteElo "2332"]
[BlackElo "2546"]
[TimeControl "180+1"]
[EndTime "11:29:29 PDT"]
[Termination "elohunter1999 won by resignation"]

1. e4 {[%clk 0:02:59.7]} 1... c5 {[%clk 0:02:59]} 2. Nf3 {[%clk 0:02:59.3]} 2...
g6 {[%clk 0:02:58.5]} 3. d4 {[%clk 0:02:59.3]} 3... cxd4 {[%clk 0:02:58.2]} 4.
Nxd4 {[%clk 0:03:00.2]} 4... Nc6 {[%clk 0:02:56.6]} 5. Nc3 {[%clk 0:03:00.3]}
5... Bg7 {[%clk 0:02:54.6]} 6. Nb3 {[%clk 0:03:00.7]} 6... Nf6 {[%clk
0:02:53.8]} 7. Be2 {[%clk 0:02:59.9]} 7... O-O {[%clk 0:02:53.6]} 8. O-O {[%clk
0:03:00.3]} 8... d6 {[%clk 0:02:52.9]} 9. Re1 {[%clk 0:03:00.4]} 9... Be6 {[%clk
0:02:39.8]} 10. Bf1 {[%clk 0:02:57.4]} 10... Rc8 {[%clk 0:02:38.5]} 11. Bg5
{[%clk 0:02:57.3]} 11... Na5 {[%clk 0:02:33]} 12. Nd5 {[%clk 0:02:56.1]} 12...
Bxd5 {[%clk 0:02:24.2]} 13. exd5 {[%clk 0:02:56.2]} 13... Re8 {[%clk 0:02:20.7]}
14. c3 {[%clk 0:02:54.5]} 14... Nc4 {[%clk 0:02:14]} 15. Rb1 {[%clk 0:02:52.7]}
15... h6 {[%clk 0:02:07.7]} 16. Bh4 {[%clk 0:02:51.4]} 16... Qb6 {[%clk
0:01:51.4]} 17. Kh1 {[%clk 0:02:36.8]} 17... a5 {[%clk 0:01:40.5]} 18. a4 {[%clk
0:02:06]} 18... g5 {[%clk 0:01:40.1]} 19. Bg3 {[%clk 0:02:05.2]} 19... Nxd5
{[%clk 0:01:27.5]} 20. Bxc4 {[%clk 0:01:53]} 20... Rxc4 {[%clk 0:01:25.1]} 21.
Qxd5 {[%clk 0:01:52]} 21... Qxb3 {[%clk 0:01:24.8]} 22. Bxd6 {[%clk 0:01:51.8]}
22... Rxc3 {[%clk 0:01:06.4]} 23. Qxa5 {[%clk 0:01:41.7]} 23... Rc2 {[%clk
0:00:53.4]} 24. Qb5 {[%clk 0:00:57]} 24... Qxb5 {[%clk 0:00:47.8]} 25. axb5
{[%clk 0:00:56.8]} 25... e6 {[%clk 0:00:42]} 26. Kg1 {[%clk 0:00:38.4]} 26...
Rd8 {[%clk 0:00:27.4]} 27. Bb4 {[%clk 0:00:30.6]} 27... Rxb2 {[%clk 0:00:24.8]}
28. g3 {[%clk 0:00:19.2]} 28... Rd5 {[%clk 0:00:19.5]} 29. b6 {[%clk 0:00:15.4]}
29... Rxb1 {[%clk 0:00:18.5]} 30. Rxb1 {[%clk 0:00:14]} 30... Rb5 {[%clk
0:00:19.4]} 31. Rb3 {[%clk 0:00:08.7]} 31... Rxb6 {[%clk 0:00:19.3]} 32. Kf1
{[%clk 0:00:09.3]} 32... Bf8 {[%clk 0:00:18.1]} 33. Bxf8 {[%clk 0:00:06.8]}
33... Rxb3 {[%clk 0:00:18]} 34. Bxh6 {[%clk 0:00:07.5]} 34... Rb5 {[%clk
0:00:15.5]} 35. h4 {[%clk 0:00:05.7]} 35... f6 {[%clk 0:00:15.5]} 36. hxg5
{[%clk 0:00:05.4]} 36... fxg5 {[%clk 0:00:12]} 37. f4 {[%clk 0:00:06.1]} 37...
gxf4 {[%clk 0:00:09.5]} 38. Bxf4 {[%clk 0:00:05.8]} 38... Kf7 {[%clk 0:00:09.2]}
39. Ke2 {[%clk 0:00:06.2]} 39... e5 {[%clk 0:00:09.6]} 40. Be3 {[%clk
0:00:05.6]} 40... Ke6 {[%clk 0:00:10.1]} 41. Kd3 {[%clk 0:00:05]} 41... Kd5
{[%clk 0:00:10]} 42. Kc3 {[%clk 0:00:04.7]} 42... Rb1 {[%clk 0:00:07.7]} 43. Bg5
{[%clk 0:00:04.1]} 43... Rg1 {[%clk 0:00:07.4]} 44. Bh4 {[%clk 0:00:04.5]} 44...
b5 {[%clk 0:00:07.6]} 45. Kd3 {[%clk 0:00:04.5]} 45... e4+ {[%clk 0:00:07.6]}
46. Ke2 {[%clk 0:00:05]} 46... b4 {[%clk 0:00:07.6]} 47. Kf2 {[%clk 0:00:05.7]}
47... Ra1 {[%clk 0:00:07.6]} 48. g4 {[%clk 0:00:06.3]} 48... b3 {[%clk
0:00:07.6]} 49. g5 {[%clk 0:00:06.4]} 49... b2 {[%clk 0:00:07.5]} 0-1

[Event "*** Titled Tuesday Blitz"]
[Site "Chess.com"]
[Date "2021.03.30"]
[Round "8"]
[White "BigAl"]
[Black "DrVitman"]
[Result "0-1"]
[WhiteElo "2504"]
[BlackElo "2648"]
[TimeControl "180+1"]
[EndTime "11:29:30 PDT"]
[Termination "DrVitman won on time"]

1. Nf3 {[%clk 0:03:00.9]} 1... Nf6 {[%clk 0:02:59.6]} 2. g3 {[%clk 0:03:01.1]}
2... g6 {[%clk 0:02:57.9]} 3. Bg2 {[%clk 0:03:01.6]} 3... Bg7 {[%clk 0:02:57.3]}
4. O-O {[%clk 0:03:02.5]} 4... O-O {[%clk 0:02:57.3]} 5. d3 {[%clk 0:03:03.1]}
5... d6 {[%clk 0:02:56.9]} 6. e4 {[%clk 0:03:02.9]} 6... c5 {[%clk 0:02:57.2]}
7. e5 {[%clk 0:03:03.3]} 7... dxe5 {[%clk 0:02:56]} 8. Nxe5 {[%clk 0:03:03.5]}
8... Nbd7 {[%clk 0:02:55.6]} 9. Nc4 {[%clk 0:03:02.7]} 9... Nb6 {[%clk
0:02:48.5]} 10. Na5 {[%clk 0:03:00.9]} 10... Nbd5 {[%clk 0:02:47.3]} 11. Nb3
{[%clk 0:03:01]} 11... Qc7 {[%clk 0:02:44.7]} 12. c4 {[%clk 0:02:51.7]} 12...
Nb4 {[%clk 0:02:43.3]} 13. a3 {[%clk 0:02:45.3]} 13... Na6 {[%clk 0:02:39.9]}
14. Nc3 {[%clk 0:02:44.2]} 14... Bf5 {[%clk 0:02:28.8]} 15. Qf3 {[%clk
0:02:29.3]} 15... Rfd8 {[%clk 0:02:09.8]} 16. Qxb7 {[%clk 0:02:26.8]} 16... Qxb7
{[%clk 0:02:04.8]} 17. Bxb7 {[%clk 0:02:26.6]} 17... Rab8 {[%clk 0:02:05.2]} 18.
Na5 {[%clk 0:02:16.5]} 18... Nc7 {[%clk 0:02:02]} 19. Bf4 {[%clk 0:02:04.4]}
19... Nfe8 {[%clk 0:02:01.7]} 20. Rfe1 {[%clk 0:01:59.3]} 20... Kf8 {[%clk
0:01:47.2]} 21. Be4 {[%clk 0:01:30.8]} 21... Rxb2 {[%clk 0:01:42.2]} 22. Nd5
{[%clk 0:01:15.9]} 22... Nxd5 {[%clk 0:01:38]} 23. cxd5 {[%clk 0:01:12.1]} 23...
Rb5 {[%clk 0:00:42.8]} 24. Nc6 {[%clk 0:01:11.7]} 24... Bxa1 {[%clk 0:00:42.4]}
25. Rxa1 {[%clk 0:01:06.3]} 25... Rd7 {[%clk 0:00:33.2]} 26. Kg2 {[%clk
0:00:51.1]} 26... Nf6 {[%clk 0:00:32.6]} 27. Bh6+ {[%clk 0:00:47]} 27... Ke8
{[%clk 0:00:29.1]} 28. Bf3 {[%clk 0:00:26]} 28... Nxd5 {[%clk 0:00:27.8]} 29.
Re1 {[%clk 0:00:21.2]} 29... e6 {[%clk 0:00:22.8]} 30. Ne5 {[%clk 0:00:19.8]}
30... Rd6 {[%clk 0:00:22.1]} 31. g4 {[%clk 0:00:20.3]} 31... f6 {[%clk
0:00:19.8]} 32. gxf5 {[%clk 0:00:17.8]} 32... fxe5 {[%clk 0:00:19.6]} 33. fxg6
{[%clk 0:00:17.9]} 33... hxg6 {[%clk 0:00:18.8]} 34. Rxe5 {[%clk 0:00:18.5]}
34... Kf7 {[%clk 0:00:18.2]} 35. Bg5 {[%clk 0:00:14.6]} 35... Rb3 {[%clk
0:00:17.2]} 36. Be4 {[%clk 0:00:14.7]} 36... Rxa3 {[%clk 0:00:16.7]} 37. h4
{[%clk 0:00:13.6]} 37... Nf6 {[%clk 0:00:14.2]} 38. Rxc5 {[%clk 0:00:10.9]}
38... Nxe4 {[%clk 0:00:13.5]} 39. dxe4 {[%clk 0:00:11.3]} 39... Rd7 {[%clk
0:00:13.6]} 40. Be3 {[%clk 0:00:06.3]} 40... a5 {[%clk 0:00:12.9]} 41. Kf3
{[%clk 0:00:06.7]} 41... a4 {[%clk 0:00:11.1]} 42. Ra5 {[%clk 0:00:06.9]} 42...
Ra1 {[%clk 0:00:09.9]} 43. Kf4 {[%clk 0:00:06.9]} 43... a3 {[%clk 0:00:09.7]}
44. Ke5 {[%clk 0:00:02.4]} 44... a2 {[%clk 0:00:10]} 45. Ra8 {[%clk 0:00:02.4]}
45... Rb7 {[%clk 0:00:09]} 46. Bd4 {[%clk 0:00:01.8]} 46... Rb5+ {[%clk
0:00:09]} 47. Kf4 {[%clk 0:00:02.1]} 47... Rd1 {[%clk 0:00:08.5]} 48. Ra7+
{[%clk 0:00:01.6]} 48... Ke8 {[%clk 0:00:08.3]} 0-1

[Event "*** Titled Tuesday Blitz"]
[Site "Chess.com"]
[Date "2021.03.30"]
[Round "8"]
[White "Horizonevent"]
[Black "Chopper1905"]
[Result "0-1"]
[WhiteElo "2524"]
[BlackElo "2917"]
[TimeControl "180+1"]
[EndTime "11:29:30 PDT"]
[Termination "Chopper1905 won by resignation"]

1. e4 {[%clk 0:03:00.9]} 1... c5 {[%clk 0:02:57.7]} 2. Nf3 {[%clk 0:03:01]} 2...
Nc6 {[%clk 0:02:57.8]} 3. d4 {[%clk 0:03:01.6]} 3... cxd4 {[%clk 0:02:57.9]} 4.
Nxd4 {[%clk 0:03:02.5]} 4... Nf6 {[%clk 0:02:58.5]} 5. Nc3 {[%clk 0:03:02.3]}
5... e5 {[%clk 0:02:58.9]} 6. Ndb5 {[%clk 0:03:02.5]} 6... d6 {[%clk 0:02:59.2]}
7. Bg5 {[%clk 0:03:01]} 7... a6 {[%clk 0:02:59.3]} 8. Na3 {[%clk 0:03:01.1]}
8... b5 {[%clk 0:02:59.7]} 9. Nd5 {[%clk 0:03:00.9]} 9... Be7 {[%clk 0:02:59.5]}
10. Bxf6 {[%clk 0:03:00.5]} 10... Bxf6 {[%clk 0:03:00.4]} 11. c4 {[%clk
0:02:59]} 11... b4 {[%clk 0:03:00.1]} 12. Nc2 {[%clk 0:02:59]} 12... O-O {[%clk
0:03:00.6]} 13. g3 {[%clk 0:02:49.2]} 13... Bg5 {[%clk 0:02:57.9]} 14. h4 {[%clk
0:02:48]} 14... Bh6 {[%clk 0:02:56.5]} 15. Bg2 {[%clk 0:02:45.2]} 15... a5
{[%clk 0:02:52.4]} 16. O-O {[%clk 0:02:43.5]} 16... Be6 {[%clk 0:02:49]} 17. b3
{[%clk 0:02:37.4]} 17... Qb8 {[%clk 0:02:43.9]} 18. f4 {[%clk 0:02:20.6]} 18...
Qa7+ {[%clk 0:02:32.3]} 19. Kh2 {[%clk 0:02:16.4]} 19... Qc5 {[%clk 0:02:23.3]}
20. Nc7 {[%clk 0:01:49.1]} 20... Rad8 {[%clk 0:02:09.1]} 21. f5 {[%clk
0:01:47.8]} 21... Bc8 {[%clk 0:02:02.1]} 22. Nd5 {[%clk 0:01:43.4]} 22... f6
{[%clk 0:01:57.5]} 23. Qd3 {[%clk 0:01:40.2]} 23... Rf7 {[%clk 0:01:54.9]} 24.
Rad1 {[%clk 0:01:40.6]} 24... Ne7 {[%clk 0:01:54.6]} 25. Nxe7+ {[%clk
0:01:29.8]} 25... Rxe7 {[%clk 0:01:54.6]} 26. Qd5+ {[%clk 0:01:29.9]} 26... Qxd5
{[%clk 0:01:52.1]} 27. Rxd5 {[%clk 0:01:30.8]} 27... Ra7 {[%clk 0:01:38.8]} 28.
Rfd1 {[%clk 0:01:30]} 28... Ra6 {[%clk 0:01:32.1]} 29. c5 {[%clk 0:01:26.4]}
29... Bb7 {[%clk 0:01:32.3]} 30. Rxd6 {[%clk 0:01:20.6]} 30... Raxd6 {[%clk
0:01:31.3]} 31. cxd6 {[%clk 0:01:20.5]} 31... Kf8 {[%clk 0:01:24.9]} 32. a3
{[%clk 0:01:20.7]} 32... a4 {[%clk 0:01:13.9]} 33. bxa4 {[%clk 0:01:11.3]} 33...
b3 {[%clk 0:01:13.9]} 34. Nb4 {[%clk 0:01:08.4]} 34... b2 {[%clk 0:01:11.6]} 35.
Rb1 {[%clk 0:01:08.6]} 35... Bc1 {[%clk 0:00:56.1]} 36. Nd3 {[%clk 0:01:08.5]}
36... Rxd6 {[%clk 0:00:56.3]} 37. Nxc1 {[%clk 0:01:07.6]} 37... Rd2 {[%clk
0:00:56.8]} 38. Nd3 {[%clk 0:01:03]} 38... Rxd3 {[%clk 0:00:40.8]} 39. Rxb2
{[%clk 0:01:03.2]} 39... Bc6 {[%clk 0:00:41.4]} 40. Rb4 {[%clk 0:00:27.7]} 40...
Rxa3 {[%clk 0:00:40]} 41. Rc4 {[%clk 0:00:28]} 41... Bxa4 {[%clk 0:00:38.9]} 42.
Rc8+ {[%clk 0:00:28.2]} 42... Ke7 {[%clk 0:00:38.5]} 43. Ra8 {[%clk 0:00:29.1]}
43... Ra2 {[%clk 0:00:38.3]} 44. Ra7+ {[%clk 0:00:27.1]} 44... Kf8 {[%clk
0:00:37.9]} 45. Ra8+ {[%clk 0:00:27.1]} 45... Ke7 {[%clk 0:00:31]} 46. Ra7+
{[%clk 0:00:25.4]} 46... Kd6 {[%clk 0:00:31.3]} 47. Rxg7 {[%clk 0:00:21.9]}
47... Bd1 {[%clk 0:00:30.2]} 48. Kh3 {[%clk 0:00:17.1]} 48... h5 {[%clk
0:00:30.2]} 49. Bf1 {[%clk 0:00:17]} 49... Rf2 {[%clk 0:00:19]} 50. Bc4 {[%clk
0:00:15.2]} 50... Bf3 {[%clk 0:00:18.9]} 51. Bd5 {[%clk 0:00:14.9]} 51... Rb2
{[%clk 0:00:16.3]} 52. Rg6 {[%clk 0:00:13.9]} 52... Bg2+ {[%clk 0:00:16.3]} 53.
Kh2 {[%clk 0:00:14.4]} 53... Bxe4+ {[%clk 0:00:17]} 54. Kg1 {[%clk 0:00:14.6]}
54... Kxd5 {[%clk 0:00:16.9]} 55. Rxf6 {[%clk 0:00:15.5]} 55... Rg2+ {[%clk
0:00:16.9]} 56. Kf1 {[%clk 0:00:15.8]} 56... Rxg3 {[%clk 0:00:17.8]} 57. Rh6
{[%clk 0:00:15.4]} 57... Rf3+ {[%clk 0:00:18.1]} 58. Ke1 {[%clk 0:00:15.3]}
58... Rxf5 {[%clk 0:00:19]} 0-1

[Event "*** Titled Tuesday Blitz"]
[Site "Chess.com"]
[Date "2021.03.30"]
[Round "8"]
[White "ymoy"]
[Black "Mr_Sinigami"]
[Result "0-1"]
[WhiteElo "2719"]
[BlackElo "2568"]
[TimeControl "180+1"]
[EndTime "11:29:34 PDT"]
[Termination "Mr_Sinigami won on time"]

1. e4 {[%clk 0:03:00.9]} 1... d5 {[%clk 0:02:58.8]} 2. exd5 {[%clk 0:03:00.8]}
2... Nf6 {[%clk 0:02:59.3]} 3. d4 {[%clk 0:03:00.4]} 3... Nxd5 {[%clk
0:02:59.5]} 4. c4 {[%clk 0:03:00.3]} 4... Nb6 {[%clk 0:02:59.4]} 5. Nc3 {[%clk
0:02:59.8]} 5... e5 {[%clk 0:02:59]} 6. Be3 {[%clk 0:02:50.9]} 6... exd4 {[%clk
0:02:36]} 7. Qxd4 {[%clk 0:02:48.6]} 7... Qxd4 {[%clk 0:02:32.6]} 8. Bxd4 {[%clk
0:02:49.5]} 8... Nc6 {[%clk 0:02:28.1]} 9. Be3 {[%clk 0:02:42.1]} 9... Be6
{[%clk 0:02:23.5]} 10. b3 {[%clk 0:02:29.1]} 10... Bb4 {[%clk 0:02:14.5]} 11.
Rc1 {[%clk 0:02:27.5]} 11... O-O-O {[%clk 0:02:06.8]} 12. Nf3 {[%clk 0:02:20.4]}
12... Rhe8 {[%clk 0:01:59.3]} 13. Be2 {[%clk 0:02:18.1]} 13... Bxc4 {[%clk
0:01:44.4]} 14. bxc4 {[%clk 0:01:40.1]} 14... Na4 {[%clk 0:01:41.2]} 15. Bd2
{[%clk 0:01:39.8]} 15... Rxd2 {[%clk 0:01:36.7]} 16. Kxd2 {[%clk 0:01:25.5]}
16... Nxc3 {[%clk 0:01:31.9]} 17. Bd3 {[%clk 0:01:14.5]} 17... Nxa2+ {[%clk
0:01:27.3]} 18. Kc2 {[%clk 0:01:13.5]} 18... Nxc1 {[%clk 0:01:24.4]} 19. Rxc1
{[%clk 0:01:14.4]} 19... h6 {[%clk 0:01:13.1]} 20. Bf5+ {[%clk 0:01:00.5]} 20...
Kb8 {[%clk 0:01:10.6]} 21. Bd7 {[%clk 0:01:00.3]} 21... Re7 {[%clk 0:01:05.4]}
22. Bxc6 {[%clk 0:01:00.1]} 22... bxc6 {[%clk 0:01:04.4]} 23. Nd4 {[%clk
0:01:00.8]} 23... Kb7 {[%clk 0:00:57.5]} 24. Kb3 {[%clk 0:01:00.6]} 24... a5
{[%clk 0:00:54]} 25. Nf5 {[%clk 0:00:53.3]} 25... Re5 {[%clk 0:00:48.5]} 26. Ne3
{[%clk 0:00:51.2]} 26... Bd2 {[%clk 0:00:44.8]} 27. Rf1 {[%clk 0:00:51]} 27...
Bxe3 {[%clk 0:00:43.8]} 28. fxe3 {[%clk 0:00:50.2]} 28... Rxe3+ {[%clk 0:00:44]}
29. Ka4 {[%clk 0:00:49.3]} 29... f6 {[%clk 0:00:43.7]} 30. Kxa5 {[%clk
0:00:46.9]} 30... Re2 {[%clk 0:00:43.9]} 31. Rg1 {[%clk 0:00:46.5]} 31... Rb2
{[%clk 0:00:41.7]} 32. Ka4 {[%clk 0:00:46.3]} 32... c5 {[%clk 0:00:41.8]} 33.
Ka3 {[%clk 0:00:45]} 33... Rf2 {[%clk 0:00:39.3]} 34. Kb3 {[%clk 0:00:43.5]}
34... Kc6 {[%clk 0:00:39.6]} 35. Kc3 {[%clk 0:00:39.7]} 35... h5 {[%clk
0:00:39.5]} 36. Kd3 {[%clk 0:00:38.1]} 36... h4 {[%clk 0:00:36.3]} 37. Ke3
{[%clk 0:00:36.7]} 37... Rc2 {[%clk 0:00:35.8]} 38. Kd3 {[%clk 0:00:34.6]} 38...
Ra2 {[%clk 0:00:36]} 39. Ke4 {[%clk 0:00:33.2]} 39... Rd2 {[%clk 0:00:32.7]} 40.
Kf5 {[%clk 0:00:31.9]} 40... Rd4 {[%clk 0:00:32.7]} 41. Rc1 {[%clk 0:00:29.6]}
41... Rd2 {[%clk 0:00:31]} 42. Rg1 {[%clk 0:00:29.4]} 42... Rc2 {[%clk
0:00:30.9]} 43. Kg6 {[%clk 0:00:29]} 43... Rxc4 {[%clk 0:00:30.9]} 44. Kxg7
{[%clk 0:00:28.4]} 44... Rf4 {[%clk 0:00:31]} 45. Rc1 {[%clk 0:00:10.9]} 45...
c4 {[%clk 0:00:30.3]} 46. g3 {[%clk 0:00:10.6]} 46... hxg3 {[%clk 0:00:30]} 47.
hxg3 {[%clk 0:00:10.1]} 47... Rg4+ {[%clk 0:00:28.8]} 48. Kxf6 {[%clk
0:00:09.9]} 48... Kc5 {[%clk 0:00:29.1]} 49. Rg1 {[%clk 0:00:06.9]} 49... c3
{[%clk 0:00:28.5]} 50. Kf5 {[%clk 0:00:06.7]} 50... Rg8 {[%clk 0:00:28.3]} 51.
g4 {[%clk 0:00:04.8]} 51... Kd4 {[%clk 0:00:27.9]} 52. g5 {[%clk 0:00:03.8]}
52... c2 {[%clk 0:00:27.2]} 53. Kf6 {[%clk 0:00:02.5]} 53... c5 {[%clk
0:00:26.9]} 0-1

[Event "*** Titled Tuesday Blitz"]
[Site "Chess.com"]
[Date "2021.03.30"]
[Round "8"]
[White "Legendinunknown"]
[Black "Kislov_Oleg"]
[Result "1-0"]
[WhiteElo "2599"]
[BlackElo "2479"]
[TimeControl "180+1"]
[EndTime "11:29:37 PDT"]
[Termination "Legendinunknown won by resignation"]

1. d4 {[%clk 0:03:00.9]} 1... Nf6 {[%clk 0:02:59.4]} 2. c4 {[%clk 0:02:54.9]}
2... e6 {[%clk 0:02:59.2]} 3. Nc3 {[%clk 0:02:53]} 3... d5 {[%clk 0:02:58.2]} 4.
Nf3 {[%clk 0:02:52.3]} 4... Bb4 {[%clk 0:02:57.9]} 5. Qa4+ {[%clk 0:02:49.2]}
5... Nc6 {[%clk 0:02:57.5]} 6. Ne5 {[%clk 0:02:49]} 6... Bd7 {[%clk 0:02:49.9]}
7. Nxd7 {[%clk 0:02:47.7]} 7... Qxd7 {[%clk 0:02:34.8]} 8. e3 {[%clk 0:02:47]}
8... a6 {[%clk 0:02:28.4]} 9. Qc2 {[%clk 0:02:39.1]} 9... O-O {[%clk 0:02:23.6]}
10. Bd2 {[%clk 0:02:36.2]} 10... e5 {[%clk 0:02:05.4]} 11. dxe5 {[%clk
0:02:27.2]} 11... Nxe5 {[%clk 0:02:04]} 12. cxd5 {[%clk 0:02:27.1]} 12... Rfd8
{[%clk 0:01:50.5]} 13. Be2 {[%clk 0:02:25.1]} 13... Nxd5 {[%clk 0:01:47.2]} 14.
Nxd5 {[%clk 0:02:07.7]} 14... Bxd2+ {[%clk 0:01:47]} 15. Qxd2 {[%clk 0:02:08.6]}
15... Qxd5 {[%clk 0:01:47.6]} 16. Qxd5 {[%clk 0:02:09.5]} 16... Rxd5 {[%clk
0:01:48.3]} 17. Rc1 {[%clk 0:02:01.8]} 17... c6 {[%clk 0:01:35.4]} 18. f4 {[%clk
0:02:00]} 18... Nd3+ {[%clk 0:01:31.9]} 19. Bxd3 {[%clk 0:01:58.5]} 19... Rxd3
{[%clk 0:01:32.8]} 20. Ke2 {[%clk 0:01:58.6]} 20... Rad8 {[%clk 0:01:31.6]} 21.
Rc2 {[%clk 0:01:54.5]} 21... f5 {[%clk 0:01:29.6]} 22. Rg1 {[%clk 0:01:51.5]}
22... h5 {[%clk 0:01:29]} 23. h3 {[%clk 0:01:50]} 23... h4 {[%clk 0:01:23.8]}
24. g4 {[%clk 0:01:48.1]} 24... hxg3 {[%clk 0:01:23.1]} 25. Rxg3 {[%clk
0:01:48.2]} 25... Kf7 {[%clk 0:01:22]} 26. h4 {[%clk 0:01:36.4]} 26... Rd1
{[%clk 0:01:15]} 27. Rg5 {[%clk 0:01:33]} 27... Kf6 {[%clk 0:01:12.2]} 28. h5
{[%clk 0:01:25.2]} 28... Rh1 {[%clk 0:01:09.1]} 29. Rc5 {[%clk 0:01:21]} 29...
Rh2+ {[%clk 0:01:01.3]} 30. Kf3 {[%clk 0:01:13.3]} 30... Rd5 {[%clk 0:01:00.9]}
31. Rxd5 {[%clk 0:01:10.3]} 31... cxd5 {[%clk 0:01:01.2]} 32. Rg6+ {[%clk
0:01:10.6]} 32... Kf7 {[%clk 0:00:59.5]} 33. Rb6 {[%clk 0:01:11.5]} 33... Rxh5
{[%clk 0:00:52.8]} 34. Rxb7+ {[%clk 0:01:11.3]} 34... Kg8 {[%clk 0:00:39.6]} 35.
Rb6 {[%clk 0:01:10.9]} 35... Rh2 {[%clk 0:00:39.3]} 36. a4 {[%clk 0:01:07.8]}
36... a5 {[%clk 0:00:35.9]} 37. Rb5 {[%clk 0:01:06.4]} 37... g6 {[%clk
0:00:33.4]} 38. Rxa5 {[%clk 0:01:04.2]} 38... Rxb2 {[%clk 0:00:32.7]} 39. Rxd5
{[%clk 0:01:04.3]} 39... Ra2 {[%clk 0:00:32.6]} 40. Ra5 {[%clk 0:01:01.5]} 40...
Kg7 {[%clk 0:00:28.7]} 41. Ra7+ {[%clk 0:01:00]} 41... Kf6 {[%clk 0:00:27]} 42.
a5 {[%clk 0:00:59.1]} 42... Ra1 {[%clk 0:00:24.5]} 43. Ke2 {[%clk 0:00:56.4]}
43... Ra3 {[%clk 0:00:22.3]} 44. a6 {[%clk 0:00:54.7]} 44... g5 {[%clk
0:00:18.5]} 45. fxg5+ {[%clk 0:00:52.3]} 45... Kxg5 {[%clk 0:00:19.4]} 46. Ra8
{[%clk 0:00:52.9]} 46... Kf6 {[%clk 0:00:14]} 47. a7 {[%clk 0:00:52.1]} 47...
Kg7 {[%clk 0:00:14.1]} 48. Kf3 {[%clk 0:00:51]} 48... Ra4 {[%clk 0:00:13.8]} 49.
Ke2 {[%clk 0:00:50.4]} 49... Kh7 {[%clk 0:00:14]} 50. Kd3 {[%clk 0:00:49.8]}
50... Kg7 {[%clk 0:00:13.1]} 51. Kc3 {[%clk 0:00:49.7]} 51... Kh7 {[%clk
0:00:10.7]} 52. Kb3 {[%clk 0:00:48.9]} 52... Ra1 {[%clk 0:00:10.6]} 53. Kc4
{[%clk 0:00:47.2]} 53... Kg7 {[%clk 0:00:10.1]} 54. Kd5 {[%clk 0:00:44.3]} 54...
Ra5+ {[%clk 0:00:09.5]} 55. Ke6 {[%clk 0:00:44]} 55... Kh7 {[%clk 0:00:08.7]}
56. Kf6 {[%clk 0:00:43.2]} 56... Ra6+ {[%clk 0:00:05.1]} 57. Kxf5 {[%clk
0:00:41.6]} 57... Ra5+ {[%clk 0:00:05.6]} 58. Kf4 {[%clk 0:00:40.7]} 58... Kg7
{[%clk 0:00:05.2]} 59. e4 {[%clk 0:00:40.1]} 59... Ra6 {[%clk 0:00:05.5]} 60. e5
{[%clk 0:00:39.5]} 60... Ra1 {[%clk 0:00:04.5]} 61. e6 {[%clk 0:00:38.8]} 61...
Rf1+ {[%clk 0:00:04.7]} 62. Kg3 {[%clk 0:00:38]} 62... Rg1+ {[%clk 0:00:04]} 63.
Kf2 {[%clk 0:00:38]} 63... Ra1 {[%clk 0:00:04.6]} 64. e7 {[%clk 0:00:38]} 1-0